bitfinex-derivatives/quotes_SOLF0:USTF0_20250202
["timestamp","ask_amount","ask_price","bid_price","bid_amount"]
[1738467304425,36.76711567,210.92,210.74,31.88711567]
[1738467304625,4.88,210.92,210.78,31.88711567]
[1738467305118,36.76711567,210.92,210.81,0.03285055]
[1738467305426,4.7438,210.86,210.81,0.03285055]
[1738467305826,36.76711567,210.92,210.81,0.03285055]
[1738467306320,31.88711567,210.96,210.81,0.03285055]
[1738467306524,31.88711567,211.1,210.81,0.03285055]
[1738467306724,0.82947562,211.09,210.91,31.88711567]
[1738467306918,31.88711567,211.2,210.91,31.88711567]
[1738467306919,31.88711567,211.14,210.95,31.88711567]
[1738467307119,4.7396,211.05,210.95,31.88711567]
[1738467307526,31.88711567,211.14,210.95,31.88711567]
[1738467307727,31.88711567,211.1,210.91,31.88711567]
[1738467307923,31.88711567,211.1,210.98,0.03040157]
[1738467308229,4.7401,211.02,210.98,0.03040157]
[1738467308530,31.88711567,211.15,210.98,0.03040157]
[1738467309030,31.88711567,211.11,210.92,2.9506]
[1738467309225,31.88711567,211.11,211.04,0.03409845]
[1738467309723,31.88711567,211.2,210.91,18.95545287]
[1738467309928,31.88711567,211.14,211.05,0.03537537]
[1738467310125,31.88711567,211.2,211.05,0.03537537]
[1738467310428,4.7372,211.15,211.05,4.7393]
[1738467310628,31.88711567,211.2,211.1,0.03537914]
[1738467311225,31.88711567,211.2,210.95,31.88711567]
[1738467311426,31.88711567,211.08,210.91,18.95545287]
[1738467311720,31.88711567,211.08,210.91,23.69775287]
[1738467311922,31.88711567,211.08,210.91,18.95545287]
[1738467312129,31.88711567,211.08,210.87,31.88711567]
[1738467312530,0.0299366,211.02,210.97,0.03574291]
[1738467312731,4.7408,210.99,210.97,0.03574291]
[1738467312931,0.0299366,211.02,210.87,31.88711567]
[1738467313332,4.7407,210.99,210.9,4.7426]
[1738467313636,31.88711567,211.1,210.87,31.88711567]
[1738467313832,31.88711567,211.06,210.87,31.88711567]
[1738467314029,31.88711567,211.06,210.91,31.88711567]
[1738467314233,0.03320325,210.99,210.95,31.88711567]
[1738467314625,4.82,211.12,210.95,31.88711567]
[1738467314825,4.82,211.12,210.99,31.88711567]
[1738467315134,4.7383,211.1,211.0,4.7403]
[1738467315326,0.03069707,211.08,211.0,4.7403]
[1738467315530,0.03069707,211.08,211.03,0.03150039]
[1738467316631,4.7394,211.05,211.03,0.03150039]
[1738467318427,0.03069707,211.08,211.03,0.03150039]
[1738467318836,4.7391,211.07,211.03,0.03150039]
[1738467319032,0.03069707,211.08,211.03,0.03150039]
[1738467320338,4.739,211.07,211.03,0.03150039]
[1738467320638,0.03069707,211.08,211.03,0.03150039]
[1738467321538,4.7395,211.05,211.03,0.03150039]
[1738467323343,4.7394,211.05,211.03,0.03150039]
[1738467323635,0.03069707,211.08,211.03,0.03150039]
[1738467323842,4.7396,211.04,211.03,0.03150039]
[1738467324138,31.88711567,211.07,210.87,31.88711567]
[1738467324337,31.88711567,211.03,210.87,31.88711567]
[1738467324538,31.88711567,211.03,210.83,34.78831567]
[1738467324744,31.88711567,210.95,210.79,8.1294]
[1738467324931,31.88711567,210.95,210.79,3.3843]
[1738467325434,0.03119857,210.89,210.85,0.03194609]
[1738467325639,3.0476,211.02,210.85,0.03194609]
[1738467325835,3.0476,211.02,210.85,4.7437]
[1738467326041,4.7435,210.87,210.79,3.3843]
[1738467326236,31.88711567,210.95,210.79,3.3843]
[1738467326542,31.88711567,210.99,210.79,3.3843]
[1738467326937,0.03220565,210.91,210.87,0.03245626]
[1738467327139,0.03220565,210.91,210.79,31.88711567]
[1738467327439,31.88711567,211.1,210.88,31.88711567]
[1738467327633,31.88711567,211.1,210.92,31.88711567]
[1738467327833,31.88711567,211.14,210.96,31.88711567]
[1738467328134,31.88711567,211.16,210.96,31.88711567]
[1738467328338,31.88711567,211.12,210.91,6.1549]
[1738467328536,31.91704968,211.08,211.04,1.088e-05]
[1738467328837,31.88711567,211.08,210.88,4.7431]
[1738467329036,31.88711567,211.1,210.87,31.88711567]
[1738467329240,31.88711567,211.1,210.91,31.88711567]
[1738467329443,31.88711567,211.14,210.95,31.88711567]
[1738467329843,0.03022449,211.07,211.02,0.03597328]
[1738467330738,0.03022449,211.07,210.95,18.91547795]
[1738467330934,0.03022449,211.07,210.97,4.7411]
[1738467331536,0.03022449,211.07,210.99,31.88711567]
[1738467331942,4.7387,211.08,210.99,31.88711567]
[1738467332242,0.03515995,211.05,211.01,0.03226371]
[1738467332439,0.94701453,211.19,211.03,31.88711567]
[1738467332741,31.88711567,211.22,211.03,31.88711567]
[1738467333532,4.7371,211.16,211.05,4.7393]
[1738467333734,0.03033257,211.15,211.1,0.03517735]
[1738467336144,4.7362,211.2,211.11,4.738]
[1738467336444,4.7362,211.2,211.1,31.88711567]
[1738467336636,4.7362,211.19,211.12,4.7377]
[1738467336942,6.30367605,211.26,211.1,31.88711567]
[1738467337342,31.88711567,211.3,211.1,31.88711567]
[1738467337546,4.7365,211.18,211.16,0.03577039]
[1738467337938,31.88711567,211.26,211.1,31.88711567]
[1738467338139,0.03330956,211.19,211.15,0.03051458]
[1738467338647,4.7369,211.16,211.15,0.03051458]
[1738467339147,0.03330956,211.19,211.15,0.03051458]
[1738467345149,4.7369,211.16,211.15,0.03051458]
[1738467345650,31.88711567,211.16,211.02,2.8554]
[1738467346346,31.88711567,211.11,210.96,3.1123]
[1738467346554,31.88711567,211.07,210.92,2.9762]
[1738467346748,4.7409,210.99,210.92,2.9762]
[1738467346949,31.88711567,211.07,210.97,0.03348555]
[1738467347250,31.88711567,210.98,210.84,2.9762]
[1738467348253,4.7419,210.94,210.84,2.9762]
[1738467348545,0.03202184,210.93,210.89,0.03188176]
[1738467349952,25.2147042,211.02,210.89,0.03188176]
[1738467350153,25.2147042,211.02,210.91,31.88711567]
[1738467350554,25.2147042,211.02,210.94,4.7418]
[1738467350755,25.2147042,211.02,210.91,31.88711567]
[1738467351255,0.0353955,210.99,210.94,0.03580138]
[1738467351651,0.0353955,210.99,210.95,4.742]
[1738467351954,0.0353955,210.99,210.94,0.03580138]
[1738467352149,4.7415,210.98,210.94,0.03580138]
[1738467352349,0.0353955,210.99,210.87,16.04014609]
[1738467352746,4.7421,210.95,210.84,4.7444]
[1738467353054,4.7421,210.95,210.83,31.88711567]
[1738467353449,4.7423,210.94,210.85,4.7443]
[1738467353655,0.0305197,210.91,210.87,0.03046289]
[1738467354048,31.88711567,211.01,210.87,4.7438]
[1738467354255,0.03512456,210.91,210.87,31.92121178]
[1738467354457,31.88711567,211.05,210.87,31.92121178]
[1738467354657,31.88711567,211.05,210.87,31.88711567]
[1738467354858,4.5,211.08,210.91,31.88711567]
[1738467355155,31.88711567,211.1,210.91,31.88711567]
[1738467355458,4.7392,211.08,211.0,4.7408]
[1738467355660,0.03563984,211.03,210.98,0.02990453]
[1738467356051,0.03563984,211.03,210.95,31.88711567]
[1738467356259,63.77423134,210.96,210.64,31.88711567]
[1738467356456,31.88711567,210.75,210.65,3.6599]
[1738467357063,31.88711567,210.8,210.65,3.6599]
[1738467357456,0.03178765,210.75,210.7,0.03196164]
[1738467358262,0.03178765,210.75,210.72,4.747]
[1738467358555,0.03178765,210.75,210.7,0.03196164]
[1738467359663,31.88711567,210.72,210.7,0.03196164]
[1738467360562,31.88711567,210.72,210.46,192.0]
[1738467360563,31.88711567,210.71,210.51,3.3988]
[1738467360766,31.88711567,210.63,210.51,3.3988]
[1738467361762,31.9199071,210.59,210.55,0.0340991]
[1738467361963,31.9199071,210.59,210.47,6.0371]
[1738467362168,31.88711567,210.59,210.47,6.0371]
[1738467363267,31.88711567,210.52,210.51,0.03121991]
[1738467363570,31.88711567,210.52,210.41,3.3988]
[1738467363869,31.88711567,210.48,210.41,8.153]
[1738467364071,31.88711567,210.48,210.33,192.0]
[1738467364267,31.88711567,210.44,210.26,223.88711567]
[1738467364667,31.88711567,210.69,210.4,63.77423134]
[1738467364873,31.88711567,210.76,210.56,31.88711567]
[1738467365171,12.76227605,210.84,210.49,31.88711567]
[1738467365172,31.88711567,210.8,210.6,31.88711567]
[1738467365372,0.03318537,210.68,210.64,31.9195678]
[1738467365571,8.537e-05,210.68,210.66,4.7484]
[1738467365772,6.30367605,210.81,210.64,31.9195678]
[1738467366070,6.30367605,210.81,210.74,4.7467]
[1738467366766,6.30367605,210.81,210.69,31.88711567]
[1738467366966,0.03061514,210.8,210.75,0.03543652]
[1738467367370,6.30367605,210.81,210.67,4.7483]
[1738467367676,0.03107463,210.8,210.75,0.03336972]
[1738467370367,0.03107463,210.8,210.75,31.92048539]
[1738467370572,6.548,210.95,210.79,31.88711567]
[1738467370774,6.548,210.95,210.83,31.88711567]
[1738467371177,6.548,210.95,210.85,4.7442]
[1738467371473,2.9392,210.99,210.87,31.88711567]
[1738467371668,31.88711567,211.04,210.87,31.88711567]
[1738467371866,0.03000243,210.92,210.9,4.7431]
[1738467372071,31.88711567,211.04,210.87,31.88711567]
[1738467372273,0.03140993,210.93,210.89,0.02994927]
[1738467372668,4.74,211.05,210.87,31.88711567]
[1738467372875,0.03640837,210.93,210.92,4.7426]
[1738467373176,9.4202,211.09,210.91,31.88711567]
[1738467373476,6.4311,211.09,210.95,31.88711567]
[1738467373676,4.72,211.12,210.99,31.88711567]
[1738467373975,18.91102815,211.14,210.99,31.88711567]
[1738467374177,0.03297685,211.08,211.03,0.03364541]
[1738467374472,0.03297685,211.08,210.99,31.88711567]
[1738467374979,0.03297685,211.08,211.03,0.03098024]
[1738467375479,31.88711567,211.14,210.92,6.5029]
[1738467375675,0.03362906,211.08,211.03,0.0329433]
[1738467376178,4.77292906,211.08,211.03,0.0329433]
[1738467376375,0.03362906,211.08,211.03,0.0329433]
[1738467378381,31.88711567,211.24,211.05,31.88711567]
[1738467378578,4.7364,211.21,211.07,4.7392]
[1738467378974,4.7364,211.21,211.05,31.88711567]
[1738467379180,4.7365,211.2,211.08,4.7391]
[1738467379378,31.88711567,211.24,211.05,31.88711567]
[1738467379583,0.02993361,211.17,211.12,0.03553681]
[1738467380078,0.83187838,211.28,211.05,31.88711567]
[1738467380280,0.03179025,211.17,211.12,0.03038165]
[1738467380780,2.9009,211.27,211.05,31.88711567]
[1738467380981,2.9009,211.27,211.12,0.03478947]
[1738467380982,0.03524755,211.17,211.12,0.03478947]
[1738467381383,31.88711567,211.21,211.02,2.9186]
[1738467381581,4.7373,211.17,211.02,2.9186]
[1738467381774,0.03526532,211.17,211.12,0.03463231]
[1738467381972,6.5552,211.29,211.13,31.88711567]
[1738467382185,4.7354,211.25,211.14,4.7377]
[1738467382378,3.5113,211.29,211.14,4.7377]
[1738467383077,4.735,211.27,211.18,4.7368]
[1738467383279,0.03060811,211.24,211.19,0.03503383]
[1738467383776,0.03060811,211.24,211.19,4.77163383]
[1738467383974,0.03060811,211.24,211.19,0.03503383]
[1738467385583,4.7363,211.21,211.19,0.03503383]
[1738467385778,0.03060811,211.24,211.02,2.9186]
[1738467385779,31.88711567,211.22,211.02,2.9186]
[1738467385985,31.88711567,211.18,211.02,2.9186]
[1738467386386,31.88711567,211.18,210.99,3.724]
[1738467387187,0.03489643,211.11,211.06,0.03062037]
[1738467387590,4.7387,211.1,211.0,3.0413]
[1738467387781,31.88711567,211.14,211.0,3.0413]
[1738467388089,0.03124486,211.11,211.06,0.03279275]
[1738467388290,31.88711567,211.1,210.91,35.61111567]
[1738467388490,31.88711567,211.06,210.91,35.61111567]
[1738467388890,2.8854,211.09,210.91,35.61111567]
[1738467389289,4.6,211.12,210.97,31.88711567]
[1738467389489,4.6,211.12,210.91,35.61111567]
[1738467389691,0.03322342,211.02,210.98,0.03482215]
[1738467389891,0.03322342,211.02,211.0,4.7409]
[1738467390090,31.88711567,211.14,210.96,2.9231]
[1738467390394,4.7381,211.13,211.04,4.74]
[1738467390591,4.7381,211.13,210.99,31.91992762]
[1738467390794,2.8854,211.16,210.99,31.88711567]
[1738467391089,4.7394,211.08,210.99,4.741]
[1738467391389,31.88711567,211.1,210.96,2.9231]
[1738467391689,4.7401,211.04,210.96,7.6648]
[1738467391891,0.03397755,211.05,211.01,0.03605179]
[1738467392188,31.88711567,211.02,211.01,0.03605179]
[1738467392492,4.7422,210.95,210.88,2.9231]
[1738467392695,31.88711567,210.98,210.84,3.4065]
[1738467392989,31.88711567,211.02,210.84,3.4065]
[1738467393697,0.03087066,210.95,210.91,0.03423111]
[1738467393992,31.88711567,210.94,210.8,2.9231]
[1738467394898,31.88711567,210.9,210.71,3.5053]
[1738467395192,0.03581078,210.89,210.85,0.03589663]
[1738467395597,31.88711567,210.9,210.72,2.9132]
[1738467395997,0.03432909,210.89,210.85,0.03604062]
[1738467396398,31.88711567,210.94,210.74,31.88711567]
[1738467396595,4.54,210.95,210.74,31.88711567]
[1738467396596,31.88711567,210.9,210.74,31.88711567]
[1738467396795,31.88711567,210.86,210.72,2.9132]
[1738467396996,31.88711567,210.86,210.8,0.03373497]
[1738467397199,4.7437,210.88,210.8,0.03373497]
[1738467397396,0.03397399,210.81,210.8,0.03373497]
[1738467397599,31.88711567,210.86,210.8,0.03373497]
[1738467397799,4.7445,210.85,210.8,0.03373497]
[1738467398105,0.03124297,210.83,210.8,0.03373497]
[1738467398595,31.88711567,210.82,210.62,6.626]
[1738467400094,0.0329934,210.74,210.7,0.0313828]
[1738467401301,0.83183377,210.85,210.7,0.0313828]
[1738467401501,3.7224,210.88,210.7,0.0313828]
[1738467401705,4.7444,210.85,210.74,4.7466]
[1738467401902,3.7224,210.88,210.73,31.88711567]
[1738467402100,3.0124,210.89,210.73,31.88711567]
[1738467402600,3.6977,210.96,210.77,31.88711567]
[1738467402800,3.6977,210.96,210.82,4.745]
[1738467402801,0.03547287,210.83,210.82,4.745]
[1738467403002,3.6977,210.96,210.77,31.88711567]
[1738467403206,2.8974,210.97,210.77,31.88711567]
[1738467403401,4.7425,210.94,210.83,4.7446]
[1738467403602,4.5,210.99,210.81,31.88711567]
[1738467403808,31.88711567,211.0,210.81,31.88711567]
[1738467404106,2.9825,211.01,210.85,31.88711567]
[1738467404304,2.91e-05,210.93,210.89,31.88711567]
[1738467404503,2.91e-05,210.93,210.92,4.7427]
[1738467404699,6.30367605,211.04,210.89,31.88711567]
[1738467405004,6.30367605,211.04,210.96,4.7417]
[1738467405204,31.88711567,211.1,210.89,31.88711567]
[1738467405400,4.7399,211.05,210.96,4.7418]
[1738467405605,0.03024496,211.01,210.96,0.03333487]
[1738467406004,25.2147042,211.17,210.97,31.88711567]
[1738467406503,0.83386296,211.16,210.97,31.88711567]
[1738467406805,25.2147042,211.17,210.98,3.0718]
[1738467407205,0.03579841,211.1,211.05,0.0344013]
[1738467408402,0.03579841,211.1,211.05,31.92151697]
[1738467408603,3.1219,211.21,211.1,4.7386]
[1738467408809,3.1219,211.21,211.05,31.92151697]
[1738467409008,6.30367605,211.22,211.05,31.88711567]
[1738467409208,4.7359,211.23,211.09,31.88711567]
[1738467409406,3.4934,211.27,211.09,31.88711567]
[1738467409908,0.03153397,211.18,211.14,0.03023686]
[1738467410410,31.88711567,211.2,211.01,31.88711567]
[1738467410704,31.88711567,211.16,211.14,9.984e-05]
[1738467410905,31.88711567,211.16,210.97,31.88711567]
[1738467411210,31.88711567,211.16,211.0,4.7408]
[1738467411613,31.88711567,211.12,210.93,31.88711567]
[1738467411807,31.88711567,211.08,210.93,31.88711567]
[1738467412008,0.03390344,211.05,211.01,0.03164494]
[1738467412209,0.03390344,211.05,210.91,2.8442]
[1738467412409,31.88711567,211.04,210.91,2.8442]
[1738467412609,4.7404,211.03,210.92,4.7426]
[1738467412812,3.4858,211.09,210.85,31.88711567]
[1738467413313,3.4858,211.09,210.89,31.88711567]
[1738467413818,0.03628248,210.99,210.97,4.7414]
[1738467414020,31.88711567,211.14,210.95,0.03210326]
[1738467414219,31.88711567,211.14,210.97,31.88711567]
[1738467414419,4.7388,211.1,211.02,4.7404]
[1738467414614,31.88711567,211.14,210.97,31.88711567]
[1738467414818,2.9113,211.17,211.01,31.88711567]
[1738467415121,2.9113,211.17,211.02,3.0783]
[1738467415424,0.03278813,211.11,211.07,0.03532662]
[1738467415613,4.739,211.09,211.07,0.03532662]
[1738467415819,2.9113,211.17,210.97,31.88711567]
[1738467416020,2.9113,211.17,211.01,31.88711567]
[1738467416221,0.03499888,211.1,211.06,0.03591738]
[1738467416825,31.88711567,211.24,211.06,0.03591738]
[1738467417317,31.88711567,211.24,211.05,31.88711567]
[1738467417623,11.0569,211.27,211.09,31.88711567]
[1738467417926,4.7359,211.23,211.16,4.7373]
[1738467418224,11.0569,211.27,211.16,4.77179656]
[1738467418225,0.0318215,211.2,211.16,4.77179656]
[1738467420318,0.0318215,211.2,211.16,0.03449656]
[1738467420922,4.7684215,211.2,211.16,0.03449656]
[1738467421119,0.0318215,211.2,211.16,0.03449656]
[1738467422318,0.0318215,211.2,211.04,2.905]
[1738467422520,0.0318215,211.2,211.07,4.7392]
[1738467422716,31.88711567,211.22,211.07,4.7392]
[1738467423020,0.83383596,211.21,211.07,4.7392]
[1738467423320,31.88711567,211.18,211.02,3.4413]
[1738467423827,31.88711567,211.14,211.12,5.042e-05]
[1738467424120,36.24711567,211.14,210.94,3.079]
[1738467424425,4.7413,210.99,210.89,4.7432]
[1738467424725,31.88711567,211.01,210.81,6.6004]
[1738467424920,4.743,210.91,210.81,11.3454]
[1738467425222,31.88711567,210.97,210.81,2.9777]
[1738467425422,0.03548278,210.88,210.84,0.03500157]
[1738467425819,35.62461567,211.0,210.81,2.9777]
[1738467426021,4.7417,210.97,210.86,4.744]
[1738467426219,5.9863,211.06,210.88,31.88711567]
[1738467426422,0.8335404,211.05,210.92,31.88711567]
[1738467426618,0.83357706,211.1,210.96,31.88711567]
[1738467426825,4.7393,211.08,210.97,4.7415]
[1738467427224,4.7404,211.03,210.96,0.03305155]
[1738467427422,31.88711567,211.05,210.86,34.96131567]
[1738467427622,31.88711567,211.01,210.86,3.0742]
[1738467427817,4.7424,210.94,210.86,3.0742]
[1738467428019,31.88711567,210.97,210.8,31.88711567]
[1738467428225,0.03047905,210.98,210.81,3.0742]
[1738467428427,4.7422,210.95,210.85,31.88711567]
[1738467428620,4.7422,210.95,210.84,4.7444]
[1738467428621,31.88711567,211.01,210.81,3.0742]
[1738467428825,31.88711567,210.97,210.81,3.0742]
[1738467429422,4.7436,210.88,210.87,0.03423519]
[1738467429728,0.03269426,210.91,210.76,31.88711567]
[1738467430127,31.88711567,210.97,210.8,31.88711567]
[1738467430324,31.88711567,210.93,210.71,6.8548]
[1738467430529,31.88711567,210.93,210.74,31.88711567]
[1738467430822,31.88711567,210.93,210.76,4.7462]
[1738467431023,0.03247461,210.86,210.81,0.03518398]
[1738467431431,0.03247461,210.86,210.81,4.78028398]
[1738467431630,0.03247461,210.86,210.81,0.03518398]
[1738467432127,4.77667461,210.86,210.81,0.03518398]
[1738467432628,0.03247461,210.86,210.81,0.03518398]
[1738467433126,36.28711567,210.85,210.66,31.88711567]
[1738467433424,4.4,210.85,210.7,31.88711567]
[1738467433622,31.88711567,210.93,210.74,31.88711567]
[1738467433821,4.7441,210.86,210.77,4.746]
[1738467434029,31.88711567,210.93,210.74,31.88711567]
[1738467434430,31.88711567,210.93,210.79,0.03095791]
[1738467434431,0.03086877,210.84,210.79,0.03095791]
[1738467434826,0.03086877,210.84,210.7,31.88711567]
[1738467435029,4.7455,210.8,210.71,4.7473]
[1738467435231,4.7455,210.8,210.79,0.03393783]
[1738467435531,0.03100532,210.78,210.7,31.88711567]
[1738467435829,0.03100532,210.78,210.77,0.03068793]
[1738467436229,0.03100532,210.78,210.7,31.88711567]
[1738467436428,5.32e-06,210.78,210.76,4.7463]
[1738467438333,5.32e-06,210.78,210.76,7.673]
[1738467438532,5.32e-06,210.78,210.77,3.7861]
[1738467438935,5.32e-06,210.78,210.76,7.673]
[1738467439235,5.32e-06,210.78,210.76,4.7463]
[1738467439936,5.32e-06,210.78,210.76,36.63341567]
[1738467440133,5.32e-06,210.78,210.77,3.0025]
[1738467440435,2.8791,210.98,210.77,3.0025]
[1738467440635,2.8791,210.98,210.83,31.88711567]
[1738467441236,4.7413,210.99,210.83,31.88711567]
[1738467441531,0.03499401,210.93,210.88,0.0331983]
[1738467441736,4.74,211.05,210.91,31.88711567]
[1738467441938,6.1528,211.06,210.91,31.88711567]
[1738467442136,197.64461971,211.13,210.95,31.88711567]
[1738467442337,6.30367605,211.13,210.95,31.88711567]
[1738467442534,6.30367605,211.13,210.99,31.88711567]
[1738467442740,6.30367605,211.13,211.08,4.7391]
[1738467442931,1.666e-05,211.08,211.04,0.03448896]
[1738467443134,13.12962815,211.14,211.07,31.88711567]
[1738467443339,5.84732815,211.14,211.12,4.7382]
[1738467443536,5.84732815,211.14,211.04,3.5417]
[1738467443733,5.84732815,211.14,211.0,31.88711567]
[1738467444037,5.84732815,211.14,211.02,4.7404]
[1738467444238,31.88711567,211.13,210.96,34.79701567]
[1738467444537,4.7694819,211.1,211.06,0.03328616]
[1738467445135,0.0306819,211.1,211.06,0.03328616]
[1738467445438,5.84732815,211.14,211.06,0.03328616]
[1738467445839,34.95111567,211.22,211.06,0.03328616]
[1738467446334,34.95111567,211.22,211.08,4.739]
[1738467446638,34.95111567,211.22,211.04,31.88711567]
[1738467446839,0.03096172,211.17,211.13,0.03100622]
[1738467448334,4.7377,211.15,211.13,0.03100622]
[1738467448538,0.03096172,211.17,211.13,0.03100622]
[1738467449642,4.7374,211.16,211.13,0.03100622]
[1738467449830,0.03096172,211.17,211.13,0.03100622]
[1738467451839,0.03096172,211.17,211.13,4.76900622]
[1738467452032,0.03096172,211.17,211.13,0.03100622]
[1738467452235,0.03096172,211.17,211.15,4.7375]
[1738467453237,6.172e-05,211.17,211.15,4.7375]
[1738467453741,6.172e-05,211.17,211.15,36.62461567]
[1738467454440,2.9679,211.35,211.28,4.7345]
[1738467454742,4.7337,211.33,211.21,31.88711567]
[1738467455137,4.7337,211.33,211.25,4.7351]
[1738467455640,4.75952604,211.31,211.27,0.03578862]
[1738467455840,31.91264171,211.31,211.13,192.0]
[1738467456139,2.9679,211.35,211.13,192.0]
[1738467456140,31.88711567,211.27,211.13,4.738]
[1738467456540,31.88711567,211.23,211.09,93.82]
[1738467456735,31.88711567,211.19,210.99,99.48206662]
[1738467457039,4.7395,211.07,210.95,31.88711567]
[1738467457240,0.0319305,211.11,210.95,31.88711567]
[1738467457739,3.0373,211.14,210.99,31.92028093]
[1738467457940,0.03373298,211.05,211.02,4.7403]
[1738467458330,3.0373,211.14,211.02,4.7404]
[1738467458535,3.0373,211.14,211.01,0.03636726]
[1738467458735,0.03645972,211.06,210.99,31.88711567]
[1738467458940,0.03645972,211.06,211.04,4.7399]
[1738467459139,0.03645972,211.06,211.05,0.03075166]
[1738467459536,0.03645972,211.06,210.8,223.88711567]
[1738467459737,0.03645972,211.06,210.81,9.8448]
[1738467459935,3.0373,211.14,210.93,3.0873]
[1738467460141,31.88711567,211.1,210.93,3.0873]
[1738467460340,4.7386,211.11,210.93,3.0873]
[1738467460543,4.7386,211.11,211.02,4.7405]
[1738467460842,0.03239401,211.04,211.0,0.03077109]
[1738467461043,7.88,211.12,211.01,4.7406]
[1738467461345,0.03336419,211.04,211.0,0.03058478]
[1738467461741,0.03336419,211.04,210.93,3.0873]
[1738467461939,0.03336419,211.04,211.0,0.03423231]
[1738467462136,0.03336419,211.04,210.86,31.88711567]
[1738467462446,4.7413,210.99,210.91,4.7429]
[1738467462645,31.88711567,211.02,210.86,31.88711567]
[1738467463744,0.0333251,210.96,210.92,0.03426109]
[1738467464143,0.0333251,210.96,210.94,4.7422]
[1738467464738,0.0333251,210.96,210.92,0.03426109]
[1738467464937,0.0333251,210.96,210.78,31.88711567]
[1738467465144,4.7429,210.92,210.78,31.88711567]
[1738467465345,31.88711567,210.98,210.78,31.88711567]
[1738467465541,31.88711567,210.98,210.87,4.7438]
[1738467466347,0.03430645,210.95,210.9,0.0330886]
[1738467467247,0.03430645,210.95,210.93,4.7424]
[1738467467849,0.03430645,210.95,210.9,0.0330886]
[1738467469351,4.7393,211.08,211.0,4.7409]
[1738467469547,31.88711567,211.15,210.97,31.88711567]
[1738467469747,3.1376,211.18,211.01,31.88711567]
[1738467470048,3.1376,211.18,211.05,31.88711567]
[1738467470245,3.6572,211.22,211.09,31.88711567]
[1738467470749,3.1376,211.27,211.13,31.88711567]
[1738467470952,65.94835273,211.29,211.13,31.88711567]
[1738467471154,65.94835273,211.29,211.17,31.88711567]
[1738467471650,65.94835273,211.29,211.19,4.7365]
[1738467471851,65.94835273,211.29,211.17,31.88711567]
[1738467472053,0.03581141,211.25,211.21,0.03449519]
[1738467473250,0.03581141,211.25,211.1,3.1422]
[1738467473643,31.88711567,211.3,211.1,3.1422]
[1738467474050,0.83073593,211.29,211.1,3.1422]
[1738467474242,4.7357,211.24,211.1,3.1422]
[1738467474448,0.03493748,211.22,211.18,0.03030437]
[1738467474848,31.88711567,211.34,211.17,31.88711567]
[1738467475253,0.03203936,211.22,211.18,0.03299475]
[1738467475453,31.88711567,211.34,211.17,31.88711567]
[1738467475852,0.03028012,211.22,211.18,2.9635109]
[1738467476249,27.70026798,211.34,211.18,2.9317]
[1738467476450,0.03349698,211.22,211.18,2.96418919]
[1738467476852,27.70026798,211.34,211.18,2.9317]
[1738467477052,0.03494216,211.22,211.18,2.96194679]
[1738467477352,27.70026798,211.34,211.18,2.9317]
[1738467477852,0.03600325,211.22,211.18,2.96407478]
[1738467478055,4.16,211.37,211.18,2.9317]
[1738467478251,4.7345,211.29,211.21,4.7362]
[1738467478446,0.03457881,211.22,211.18,0.03048494]
[1738467478651,0.83103759,211.32,211.11,2.9069]
[1738467478851,32.1878494,211.36,211.11,2.9069]
[1738467479152,0.03052996,211.22,211.18,0.0308858]
[1738467479352,0.03052996,211.22,211.2,4.7364]
[1738467479655,3.1376,211.38,211.13,32.1878494]
[1738467479856,3.1376,211.38,211.27,4.7348]
[1738467480250,0.03467888,211.28,211.27,4.7348]
[1738467480552,3.1376,211.38,211.27,4.7348]
[1738467480754,4.7331,211.35,211.28,4.7346]
[1738467480949,0.03474329,211.3,211.25,0.03076164]
[1738467481248,0.03474329,211.3,211.11,2.9069]
[1738467481553,4.7352,211.26,211.25,7.44e-05]
[1738467481750,4.7352,211.26,211.01,179.1878494]
[1738467481751,4.16,211.34,211.04,2.9555]
[1738467482051,0.83197807,211.33,211.04,2.9555]
[1738467482254,3.1376,211.38,211.13,32.1878494]
[1738467482458,3.1376,211.38,211.14,7.0368]
[1738467482953,1.9e-07,211.28,211.23,0.03137103]
[1738467483456,3.1376,211.38,211.19,32.1878494]
[1738467483855,3.1376,211.38,211.24,4.7354]
[1738467484051,3.1376,211.38,211.19,32.1878494]
[1738467484253,0.03118744,211.33,211.29,0.03390287]
[1738467484451,0.03118744,211.33,211.29,4.76830287]
[1738467484655,0.03118744,211.33,211.29,0.03390287]
[1738467486055,0.03118744,211.33,211.16,3.7725]
[1738467486557,4.7342,211.3,211.23,4.7356]
[1738467486861,4.16,211.35,211.15,96.7155]
[1738467487158,32.1878494,211.28,210.96,126.60045948]